[Event "*** Titled Tuesday Blitz"]
[Site "Chess.com"]
[Date "2020.05.05"]
[Round "8"]
[White "talaicito"]
[Black "Dumbo32"]
[Result "0-1"]
[WhiteElo "2206"]
[BlackElo "2402"]
[TimeControl "180+1"]
[EndTime "11:36:40 PDT"]
[Termination "Dumbo32 won by resignation"]

1. d4 {[%clk 0:03:00.9]} 1... d5 {[%clk 0:02:59.3]} 2. Bf4 {[%clk 0:02:59.3]}
2... Nf6 {[%clk 0:02:58.8]} 3. Nc3 {[%clk 0:02:59.5]} 3... g6 {[%clk 0:02:57.6]}
4. e3 {[%clk 0:02:59.5]} 4... Bg7 {[%clk 0:02:57.1]} 5. h4 {[%clk 0:03:00.2]}
5... h5 {[%clk 0:02:56.4]} 6. Nf3 {[%clk 0:02:59.8]} 6... Bg4 {[%clk 0:02:53.2]}
7. Qd2 {[%clk 0:02:59.2]} 7... Bxf3 {[%clk 0:02:44.5]} 8. gxf3 {[%clk
0:02:58.8]} 8... Nbd7 {[%clk 0:02:38.1]} 9. Nb5 {[%clk 0:02:32.5]} 9... O-O
{[%clk 0:02:15.6]} 10. Bxc7 {[%clk 0:02:19.9]} 10... Qc8 {[%clk 0:02:14.7]} 11.
Bf4 {[%clk 0:02:08.4]} 11... a6 {[%clk 0:02:05.4]} 12. Na3 {[%clk 0:02:02.3]}
12... b5 {[%clk 0:01:59.9]} 13. Bd3 {[%clk 0:01:50.4]} 13... Nb6 {[%clk
0:01:56.1]} 14. Be5 {[%clk 0:01:40.4]} 14... Qc6 {[%clk 0:01:33.8]} 15. O-O-O
{[%clk 0:01:28.3]} 15... Nc4 {[%clk 0:01:27.5]} 16. Qc3 {[%clk 0:01:03.7]} 16...
Nxe5 {[%clk 0:01:17.4]} 17. dxe5 {[%clk 0:01:02]} 17... Qxc3 {[%clk 0:01:17.3]}
18. bxc3 {[%clk 0:01:02.2]} 18... Nd7 {[%clk 0:01:14.2]} 19. f4 {[%clk
0:01:02.3]} 19... e6 {[%clk 0:01:11]} 20. Rhg1 {[%clk 0:01:01.9]} 20... Rfc8
{[%clk 0:01:09.5]} 21. Nb1 {[%clk 0:01:01.5]} 21... Nc5 {[%clk 0:01:06.7]} 22.
Kd2 {[%clk 0:00:54.8]} 22... Rc7 {[%clk 0:01:06.3]} 23. Rg2 {[%clk 0:00:54.4]}
23... Rac8 {[%clk 0:01:05.8]} 24. Rdg1 {[%clk 0:00:54.5]} 24... Rd8 {[%clk
0:00:48.1]} 25. f3 {[%clk 0:00:54.2]} 25... Kf8 {[%clk 0:00:47.5]} 26. Ke2
{[%clk 0:00:53.8]} 26... Na4 {[%clk 0:00:40.1]} 27. Kd2 {[%clk 0:00:47.1]} 27...
Bh6 {[%clk 0:00:33.9]} 28. Bxg6 {[%clk 0:00:42.3]} 28... fxg6 {[%clk 0:00:32.8]}
29. Rxg6 {[%clk 0:00:42.8]} 29... Rg7 {[%clk 0:00:28.5]} 30. Rxg7 {[%clk
0:00:39.1]} 30... Bxg7 {[%clk 0:00:28.2]} 31. Rg5 {[%clk 0:00:38.7]} 31... Kf7
{[%clk 0:00:26.5]} 32. Kd3 {[%clk 0:00:33.5]} 32... Rh8 {[%clk 0:00:25.4]} 33.
Nd2 {[%clk 0:00:31.1]} 33... Bf8 {[%clk 0:00:25.3]} 34. Nb3 {[%clk 0:00:28.2]}
34... Be7 {[%clk 0:00:24.6]} 35. Rg1 {[%clk 0:00:21.7]} 35... Bxh4 {[%clk
0:00:24.3]} 36. Nd4 {[%clk 0:00:20.6]} 36... Bd8 {[%clk 0:00:16.6]} 37. f5
{[%clk 0:00:20.3]} 37... exf5 {[%clk 0:00:16.3]} 38. e6+ {[%clk 0:00:18.5]}
38... Kf6 {[%clk 0:00:14.9]} 39. f4 {[%clk 0:00:18.7]} 39... h4 {[%clk
0:00:11.7]} 40. Ke2 {[%clk 0:00:15.2]} 40... Nc5 {[%clk 0:00:11.2]} 41. Kf3
{[%clk 0:00:14.4]} 41... Nxe6 {[%clk 0:00:11]} 42. Nc6 {[%clk 0:00:11.2]} 42...
Bc7 {[%clk 0:00:08.7]} 43. Rd1 {[%clk 0:00:03.9]} 43... h3 {[%clk 0:00:08.2]}
44. Kg3 {[%clk 0:00:03.6]} 44... h2 {[%clk 0:00:07.9]} 45. Rh1 {[%clk
0:00:03.7]} 45... Nc5 {[%clk 0:00:07.8]} 46. Rxh2 {[%clk 0:00:03.7]} 46... Ne4+
{[%clk 0:00:07.9]} 47. Kg2 {[%clk 0:00:03.7]} 47... Rxh2+ {[%clk 0:00:08.7]} 48.
Kxh2 {[%clk 0:00:04.3]} 48... Nxc3 {[%clk 0:00:09]} 49. Kg2 {[%clk 0:00:03.9]}
49... Nxa2 {[%clk 0:00:08.9]} 50. Nb4 {[%clk 0:00:02.4]} 50... Nxb4 {[%clk
0:00:08.7]} 51. c3 {[%clk 0:00:01.4]} 51... Nd3 {[%clk 0:00:08.5]} 52. Kf3
{[%clk 0:00:01.6]} 52... Nc5 {[%clk 0:00:09.4]} 53. Ke2 {[%clk 0:00:02.5]} 53...
Ne4 {[%clk 0:00:09.6]} 54. Kd3 {[%clk 0:00:02.7]} 54... Bb6 {[%clk 0:00:10.1]}
55. Kc2 {[%clk 0:00:02.2]} 55... Ke6 {[%clk 0:00:11]} 56. Kd3 {[%clk 0:00:02.5]}
56... Kd6 {[%clk 0:00:11.9]} 57. Kc2 {[%clk 0:00:02.8]} 57... Kc5 {[%clk
0:00:12.8]} 58. Kd3 {[%clk 0:00:03.2]} 58... a5 {[%clk 0:00:12.4]} 59. Kc2
{[%clk 0:00:03.5]} 59... Kc4 {[%clk 0:00:12.7]} 60. Kb2 {[%clk 0:00:03.6]} 60...
Nxc3 {[%clk 0:00:12.8]} 61. Kc2 {[%clk 0:00:03.4]} 61... Ne4 {[%clk 0:00:13.7]}
62. Kb2 {[%clk 0:00:03.3]} 62... a4 {[%clk 0:00:14.6]} 63. Ka2 {[%clk
0:00:03.4]} 63... b4 {[%clk 0:00:15.5]} 64. Kb2 {[%clk 0:00:03.7]} 64... b3
{[%clk 0:00:16.4]} 65. Ka3 {[%clk 0:00:03.9]} 65... Bc5+ {[%clk 0:00:15.6]} 66.
Kxa4 {[%clk 0:00:04]} 66... b2 {[%clk 0:00:15.4]} 67. Ka5 {[%clk 0:00:04]} 67...
b1=Q {[%clk 0:00:15]} 0-1

[Event "*** Titled Tuesday Blitz"]
[Site "Chess.com"]
[Date "2020.05.05"]
[Round "8"]
[White "WPWPWP-2015"]
[Black "Piotrek1979"]
[Result "1-0"]
[WhiteElo "2446"]
[BlackElo "2286"]
[TimeControl "180+1"]
[EndTime "11:36:41 PDT"]
[Termination "WPWPWP-2015 won on time"]

1. e4 {[%clk 0:03:00.9]} 1... c5 {[%clk 0:02:57.3]} 2. Nf3 {[%clk 0:03:00]} 2...
e6 {[%clk 0:02:57.5]} 3. d4 {[%clk 0:02:59.8]} 3... cxd4 {[%clk 0:02:57.5]} 4.
Nxd4 {[%clk 0:03:00.7]} 4... a6 {[%clk 0:02:57.1]} 5. Bd3 {[%clk 0:02:59.1]}
5... Nf6 {[%clk 0:02:56]} 6. O-O {[%clk 0:02:55.4]} 6... d6 {[%clk 0:02:56.3]}
7. Nd2 {[%clk 0:02:54]} 7... Nbd7 {[%clk 0:02:53.3]} 8. a4 {[%clk 0:02:49.6]}
8... b6 {[%clk 0:02:48.3]} 9. f4 {[%clk 0:02:47.3]} 9... Qc7 {[%clk 0:02:38.3]}
10. Kh1 {[%clk 0:02:46.2]} 10... h5 {[%clk 0:02:31.6]} 11. Qe2 {[%clk
0:02:40.1]} 11... h4 {[%clk 0:02:30.1]} 12. Nc4 {[%clk 0:02:35.2]} 12... h3
{[%clk 0:02:23.6]} 13. g4 {[%clk 0:02:33.3]} 13... Bb7 {[%clk 0:02:14.2]} 14. b3
{[%clk 0:02:26]} 14... d5 {[%clk 0:02:05.3]} 15. exd5 {[%clk 0:02:04.9]} 15...
Nxd5 {[%clk 0:02:04.6]} 16. Kg1 {[%clk 0:01:38.6]} 16... Bc5 {[%clk 0:01:31.8]}
17. Qf2 {[%clk 0:01:31.2]} 17... Nb4 {[%clk 0:01:20.6]} 18. Be3 {[%clk
0:01:19.6]} 18... Nxd3 {[%clk 0:01:00.7]} 19. cxd3 {[%clk 0:01:19]} 19... Bxd4
{[%clk 0:00:59.6]} 20. Bxd4 {[%clk 0:01:18.6]} 20... Qc6 {[%clk 0:01:00.1]} 21.
Qg3 {[%clk 0:01:16]} 21... O-O-O {[%clk 0:00:31.1]} 22. Rac1 {[%clk 0:01:10.3]}
22... Qh1+ {[%clk 0:00:30.1]} 23. Kf2 {[%clk 0:01:09.4]} 23... Qg2+ {[%clk
0:00:30.2]} 24. Qxg2 {[%clk 0:00:53.3]} 24... hxg2 {[%clk 0:00:31.1]} 25. Nd6+
{[%clk 0:00:46.2]} 25... Kb8 {[%clk 0:00:30.4]} 26. Rg1 {[%clk 0:00:36.4]} 26...
Nf6 {[%clk 0:00:20.9]} 27. Bxf6 {[%clk 0:00:19.2]} 27... Rxd6 {[%clk 0:00:20.1]}
28. Be5 {[%clk 0:00:18.9]} 28... Rd8 {[%clk 0:00:19.3]} 29. h4 {[%clk
0:00:13.9]} 29... f6 {[%clk 0:00:19.1]} 30. Bxd6+ {[%clk 0:00:13.6]} 30... Rxd6
{[%clk 0:00:20]} 31. Rc3 {[%clk 0:00:13.5]} 31... Rd4 {[%clk 0:00:20.1]} 32. Ke3
{[%clk 0:00:12.8]} 32... e5 {[%clk 0:00:20.7]} 33. fxe5 {[%clk 0:00:11.3]} 33...
fxe5 {[%clk 0:00:21.6]} 34. g5 {[%clk 0:00:07.7]} 34... Rg4 {[%clk 0:00:21.7]}
35. Rc2 {[%clk 0:00:07.5]} 35... Rg3+ {[%clk 0:00:19.1]} 36. Kf2 {[%clk
0:00:06.6]} 36... Rxd3 {[%clk 0:00:18]} 37. h5 {[%clk 0:00:06.9]} 37... Rxb3
{[%clk 0:00:17.1]} 38. Re2 {[%clk 0:00:05.5]} 38... Rb4 {[%clk 0:00:16.4]} 39.
Rxe5 {[%clk 0:00:04.9]} 39... Rf4+ {[%clk 0:00:15.1]} 40. Kg3 {[%clk 0:00:05]}
40... Rf1 {[%clk 0:00:15.2]} 41. Kh2 {[%clk 0:00:05.2]} 41... Rf4 {[%clk
0:00:14]} 42. h6 {[%clk 0:00:03.8]} 42... gxh6 {[%clk 0:00:11.8]} 43. g6 {[%clk
0:00:04]} 43... Rg4 {[%clk 0:00:11.1]} 44. Re8+ {[%clk 0:00:03]} 44... Ka7
{[%clk 0:00:10.5]} 45. Re6 {[%clk 0:00:03.1]} 45... h5 {[%clk 0:00:10.1]} 46.
Rf6 {[%clk 0:00:02.7]} 46... h4 {[%clk 0:00:09.6]} 47. Re1 {[%clk 0:00:02.5]}
47... h3 {[%clk 0:00:07.1]} 48. Rg1 {[%clk 0:00:02.2]} 48... Rg5 {[%clk
0:00:06.8]} 49. Kxh3 {[%clk 0:00:02.3]} 49... Rh5+ {[%clk 0:00:06.9]} 50. Kg3
{[%clk 0:00:02.6]} 50... Rh1 {[%clk 0:00:07.4]} 51. Kf2 {[%clk 0:00:03.2]} 51...
Rh4 {[%clk 0:00:06.5]} 52. Re6 {[%clk 0:00:03.5]} 52... Rg4 {[%clk 0:00:06.6]}
53. Rf6 {[%clk 0:00:03]} 53... a5 {[%clk 0:00:07]} 54. Re6 {[%clk 0:00:03.5]}
54... Bd5 {[%clk 0:00:07.2]} 55. Rf6 {[%clk 0:00:04.1]} 55... Kb7 {[%clk
0:00:06]} 56. Re1 {[%clk 0:00:04.3]} 56... Kc7 {[%clk 0:00:02.6]} 57. Kg1 {[%clk
0:00:04.5]} 57... Rh4 {[%clk 0:00:01.6]} 58. Kf2 {[%clk 0:00:04.3]} 58... Kd8
{[%clk 0:00:01.9]} 59. Rd1 {[%clk 0:00:04.4]} 59... Ke7 {[%clk 0:00:01.3]} 60.
Rxb6 {[%clk 0:00:03.6]} 1-0

[Event "*** Titled Tuesday Blitz"]
[Site "Chess.com"]
[Date "2020.05.05"]
[Round "8"]
[White "dopolian"]
[Black "Wolverine_master"]
[Result "1-0"]
[WhiteElo "2397"]
[BlackElo "2219"]
[TimeControl "180+1"]
[EndTime "11:36:43 PDT"]
[Termination "dopolian won by resignation"]

1. e4 {[%clk 0:03:00.9]} 1... c5 {[%clk 0:02:59.7]} 2. Nf3 {[%clk 0:03:01.1]}
2... g6 {[%clk 0:03:00.3]} 3. d4 {[%clk 0:03:00.1]} 3... cxd4 {[%clk 0:03:01.2]}
4. Nxd4 {[%clk 0:03:00.8]} 4... Bg7 {[%clk 0:03:01.6]} 5. c4 {[%clk 0:03:00.8]}
5... Nc6 {[%clk 0:03:01.2]} 6. Nc2 {[%clk 0:03:01.1]} 6... d6 {[%clk 0:03:00.2]}
7. Be2 {[%clk 0:03:00.7]} 7... Nf6 {[%clk 0:02:55]} 8. Nc3 {[%clk 0:03:00.8]}
8... O-O {[%clk 0:02:44.1]} 9. O-O {[%clk 0:03:00.7]} 9... a5 {[%clk 0:02:43.2]}
10. Bd2 {[%clk 0:02:45.3]} 10... a4 {[%clk 0:02:39.4]} 11. Ne3 {[%clk
0:02:43.1]} 11... Be6 {[%clk 0:02:26.1]} 12. f3 {[%clk 0:02:38.6]} 12... Nd7
{[%clk 0:02:25.4]} 13. Nxa4 {[%clk 0:02:19.9]} 13... Nc5 {[%clk 0:01:59.3]} 14.
Nc3 {[%clk 0:01:58.4]} 14... Qb6 {[%clk 0:01:49.8]} 15. Rb1 {[%clk 0:01:22.7]}
15... Nd4 {[%clk 0:01:01]} 16. Kh1 {[%clk 0:01:11]} 16... Nxe2 {[%clk
0:00:58.4]} 17. Qxe2 {[%clk 0:01:07.4]} 17... Na4 {[%clk 0:00:55.7]} 18. Ncd5
{[%clk 0:00:47.5]} 18... Bxd5 {[%clk 0:00:34]} 19. Nxd5 {[%clk 0:00:46.5]} 19...
Qd8 {[%clk 0:00:34.5]} 20. b3 {[%clk 0:00:43.5]} 20... Nb6 {[%clk 0:00:33.5]}
21. Nxb6 {[%clk 0:00:33]} 21... Qxb6 {[%clk 0:00:34.4]} 22. Be3 {[%clk 0:00:31]}
22... Qb4 {[%clk 0:00:26.4]} 23. Rfd1 {[%clk 0:00:26.9]} 23... Rfc8 {[%clk
0:00:19.2]} 24. Bd4 {[%clk 0:00:25.3]} 24... Bxd4 {[%clk 0:00:17]} 25. Rxd4
{[%clk 0:00:26]} 25... b5 {[%clk 0:00:13.5]} 26. Rc1 {[%clk 0:00:21.9]} 26...
bxc4 {[%clk 0:00:12]} 27. Rdxc4 {[%clk 0:00:20.9]} 27... Rxc4 {[%clk 0:00:11.7]}
28. Qxc4 {[%clk 0:00:12.7]} 28... Qxc4 {[%clk 0:00:11.5]} 29. Rxc4 {[%clk
0:00:12.8]} 29... Rxa2 {[%clk 0:00:12]} 30. h3 {[%clk 0:00:11.9]} 30... Rb2
{[%clk 0:00:12.4]} 31. b4 {[%clk 0:00:11.8]} 31... Kg7 {[%clk 0:00:12.7]} 32.
Kh2 {[%clk 0:00:11.6]} 32... Kf6 {[%clk 0:00:13]} 33. Kg3 {[%clk 0:00:12]} 33...
h5 {[%clk 0:00:12.5]} 34. h4 {[%clk 0:00:11.5]} 34... Ke6 {[%clk 0:00:11.5]} 35.
Rd4 {[%clk 0:00:10.3]} 35... f6 {[%clk 0:00:11.3]} 36. Rc4 {[%clk 0:00:10.3]}
36... g5 {[%clk 0:00:10.6]} 37. hxg5 {[%clk 0:00:10]} 37... fxg5 {[%clk
0:00:11.5]} 38. Kh3 {[%clk 0:00:09.5]} 38... g4+ {[%clk 0:00:10.7]} 39. fxg4
{[%clk 0:00:08.9]} 39... hxg4+ {[%clk 0:00:11.6]} 40. Kg3 {[%clk 0:00:09.8]}
40... Ke5 {[%clk 0:00:11.4]} 41. Rc7 {[%clk 0:00:09.9]} 41... e6 {[%clk
0:00:11.3]} 42. Rc4 {[%clk 0:00:07.6]} 42... Ra2 {[%clk 0:00:07.1]} 43. Kxg4
{[%clk 0:00:05.4]} 43... Rxg2+ {[%clk 0:00:06.9]} 44. Kf3 {[%clk 0:00:06]} 44...
Rb2 {[%clk 0:00:07.7]} 45. Ke3 {[%clk 0:00:04.4]} 45... Rb3+ {[%clk 0:00:07.8]}
46. Kd2 {[%clk 0:00:04.9]} 46... d5 {[%clk 0:00:08.4]} 47. exd5 {[%clk
0:00:04.9]} 47... exd5 {[%clk 0:00:09.3]} 48. Rh4 {[%clk 0:00:05.2]} 48... d4
{[%clk 0:00:09.7]} 49. Rh5+ {[%clk 0:00:05.4]} 49... Ke4 {[%clk 0:00:10.1]} 50.
b5 {[%clk 0:00:06.1]} 50... Rb2+ {[%clk 0:00:10]} 51. Kc1 {[%clk 0:00:06.7]}
51... Rg2 {[%clk 0:00:07.5]} 52. b6 {[%clk 0:00:05.3]} 52... Rg7 {[%clk
0:00:06.7]} 53. Rb5 {[%clk 0:00:05.2]} 53... Rb7 {[%clk 0:00:06.7]} 54. Kd2
{[%clk 0:00:05.4]} 54... Rb8 {[%clk 0:00:04.2]} 55. b7 {[%clk 0:00:05.4]} 55...
d3 {[%clk 0:00:02.9]} 56. Kc3 {[%clk 0:00:05.8]} 56... Ke3 {[%clk 0:00:03.1]}
57. Re5+ {[%clk 0:00:05.8]} 57... Kf2 {[%clk 0:00:02.9]} 58. Re7 {[%clk
0:00:06]} 58... d2 {[%clk 0:00:02.5]} 59. Kxd2 {[%clk 0:00:06.1]} 59... Kf3
{[%clk 0:00:03.4]} 60. Kd3 {[%clk 0:00:06.3]} 60... Kf4 {[%clk 0:00:04.3]} 61.
Kd4 {[%clk 0:00:06.4]} 61... Kf5 {[%clk 0:00:05.2]} 62. Kd5 {[%clk 0:00:06.7]}
62... Kf6 {[%clk 0:00:06.1]} 63. Rc7 {[%clk 0:00:05.7]} 63... Kf5 {[%clk
0:00:04.3]} 64. Kc6 {[%clk 0:00:05.7]} 64... Ke6 {[%clk 0:00:03.9]} 65. Rc8
{[%clk 0:00:06.1]} 65... Rxb7 {[%clk 0:00:02.9]} 66. Kxb7 {[%clk 0:00:06.1]} 1-0

[Event "*** Titled Tuesday Blitz"]
[Site "Chess.com"]
[Date "2020.05.05"]
[Round "8"]
[White "SCIM"]
[Black "vwnv7"]
[Result "1-0"]
[WhiteElo "2535"]
[BlackElo "2334"]
[TimeControl "180+1"]
[EndTime "11:36:44 PDT"]
[Termination "SCIM won on time"]

1. d4 {[%clk 0:03:00.8]} 1... d5 {[%clk 0:02:59.4]} 2. c4 {[%clk 0:02:59.8]}
2... e6 {[%clk 0:02:59.8]} 3. Nf3 {[%clk 0:02:59.4]} 3... Nf6 {[%clk 0:02:59.9]}
4. g3 {[%clk 0:02:59.5]} 4... dxc4 {[%clk 0:02:58.8]} 5. Bg2 {[%clk 0:02:59.2]}
5... Nc6 {[%clk 0:02:58.9]} 6. O-O {[%clk 0:02:58.9]} 6... Rb8 {[%clk
0:02:58.5]} 7. a4 {[%clk 0:02:50.5]} 7... b6 {[%clk 0:02:58.4]} 8. Na3 {[%clk
0:02:30]} 8... Bxa3 {[%clk 0:02:44.3]} 9. Rxa3 {[%clk 0:02:30.9]} 9... O-O
{[%clk 0:02:43.5]} 10. Rc3 {[%clk 0:02:16.2]} 10... Ba6 {[%clk 0:02:38.6]} 11.
Bg5 {[%clk 0:02:09]} 11... h6 {[%clk 0:02:37.5]} 12. Bh4 {[%clk 0:02:05.7]}
12... Nb4 {[%clk 0:01:44.6]} 13. g4 {[%clk 0:01:17.8]} 13... Nbd5 {[%clk
0:01:39.1]} 14. g5 {[%clk 0:00:54.5]} 14... Nxc3 {[%clk 0:01:32.5]} 15. bxc3
{[%clk 0:00:53.1]} 15... hxg5 {[%clk 0:01:30.3]} 16. Bxg5 {[%clk 0:00:44.7]}
16... Bb7 {[%clk 0:01:21.5]} 17. Ne5 {[%clk 0:00:38.7]} 17... Bxg2 {[%clk
0:01:19.8]} 18. Kxg2 {[%clk 0:00:39.6]} 18... Qd5+ {[%clk 0:01:18.7]} 19. f3
{[%clk 0:00:40.2]} 19... Nh7 {[%clk 0:01:13.5]} 20. e4 {[%clk 0:00:39.4]} 20...
Qb7 {[%clk 0:00:51.5]} 21. Be3 {[%clk 0:00:30.7]} 21... Rbd8 {[%clk 0:00:45.5]}
22. Kh1 {[%clk 0:00:26.3]} 22... c5 {[%clk 0:00:44.9]} 23. Rg1 {[%clk
0:00:25.5]} 23... cxd4 {[%clk 0:00:44.8]} 24. cxd4 {[%clk 0:00:19.2]} 24... f6
{[%clk 0:00:40.9]} 25. Nxc4 {[%clk 0:00:17]} 25... Qc6 {[%clk 0:00:37.4]} 26.
Qe2 {[%clk 0:00:15.9]} 26... Qxa4 {[%clk 0:00:35.6]} 27. Nd2 {[%clk 0:00:12.1]}
27... Qd7 {[%clk 0:00:34.2]} 28. Bh6 {[%clk 0:00:08.9]} 28... Rf7 {[%clk
0:00:33.8]} 29. Be3 {[%clk 0:00:09.1]} 29... Kh8 {[%clk 0:00:33.3]} 30. Nf1
{[%clk 0:00:06.9]} 30... a5 {[%clk 0:00:32.4]} 31. Qb2 {[%clk 0:00:05.8]} 31...
b5 {[%clk 0:00:30.9]} 32. Ng3 {[%clk 0:00:06.4]} 32... b4 {[%clk 0:00:29.8]} 33.
Nh5 {[%clk 0:00:06.5]} 33... Qb5 {[%clk 0:00:27.8]} 34. Nf4 {[%clk 0:00:05.9]}
34... Re8 {[%clk 0:00:18.7]} 35. d5 {[%clk 0:00:04.9]} 35... exd5 {[%clk
0:00:17.9]} 36. Nxd5 {[%clk 0:00:04.6]} 36... b3 {[%clk 0:00:15.6]} 37. Nf4
{[%clk 0:00:04.3]} 37... a4 {[%clk 0:00:15]} 38. Ng6+ {[%clk 0:00:02.6]} 38...
Kg8 {[%clk 0:00:15]} 39. Bh6 {[%clk 0:00:02.3]} 39... Qd3 {[%clk 0:00:12]} 40.
Nh4 {[%clk 0:00:01.4]} 40... a3 {[%clk 0:00:09.7]} 41. Qg2 {[%clk 0:00:01.4]}
41... g5 {[%clk 0:00:06.2]} 42. Bg7 {[%clk 0:00:02.3]} 42... Rxg7 {[%clk
0:00:06]} 43. Nf5 {[%clk 0:00:03.2]} 43... Rg6 {[%clk 0:00:05]} 44. h4 {[%clk
0:00:04.1]} 44... b2 {[%clk 0:00:04.3]} 45. h5 {[%clk 0:00:04.1]} 45... Rg7
{[%clk 0:00:03.6]} 46. Nh6+ {[%clk 0:00:03.7]} 46... Kh8 {[%clk 0:00:03.6]} 47.
Nf5 {[%clk 0:00:03.9]} 47... b1=Q {[%clk 0:00:03.2]} 48. h6 {[%clk 0:00:04.8]}
48... Qxg1+ {[%clk 0:00:02.6]} 49. Kxg1 {[%clk 0:00:04]} 49... Qd1+ {[%clk
0:00:02.8]} 50. Kh2 {[%clk 0:00:03.8]} 50... Qd7 {[%clk 0:00:03.1]} 51. hxg7+
{[%clk 0:00:03.4]} 51... Kg8 {[%clk 0:00:03.4]} 52. Qh3 {[%clk 0:00:04.1]} 52...
Rc8 {[%clk 0:00:02.9]} 53. Nh6+ {[%clk 0:00:04.2]} 53... Kxg7 {[%clk 0:00:03.2]}
54. Qxd7+ {[%clk 0:00:05.1]} 54... Kxh6 {[%clk 0:00:03.7]} 55. Qxc8 {[%clk
0:00:05.8]} 55... Kg6 {[%clk 0:00:03.2]} 56. Qc1 {[%clk 0:00:06.4]} 56... a2
{[%clk 0:00:02.4]} 57. Qa1 {[%clk 0:00:07]} 57... Nf8 {[%clk 0:00:02.2]} 58.
Qxa2 {[%clk 0:00:07.7]} 58... Nd7 {[%clk 0:00:02.4]} 59. Qc2 {[%clk 0:00:08.6]}
59... Ne5 {[%clk 0:00:02.4]} 60. Kg2 {[%clk 0:00:09.2]} 60... g4 {[%clk
0:00:01.5]} 61. f4 {[%clk 0:00:09]} 61... Nf7 {[%clk 0:00:01.7]} 62. e5+ {[%clk
0:00:09.6]} 62... f5 {[%clk 0:00:01.9]} 63. e6 {[%clk 0:00:09.6]} 1-0

[Event "*** Titled Tuesday Blitz"]
[Site "Chess.com"]
[Date "2020.05.05"]
[Round "8"]
[White "zubridis"]
[Black "KaterynaLagno"]
[Result "1/2-1/2"]
[WhiteElo "2463"]
[BlackElo "2594"]
[TimeControl "180+1"]
[EndTime "11:36:46 PDT"]
[Termination "Game drawn by agreement"]

1. Nf3 {[%clk 0:03:00.9]} 1... Nf6 {[%clk 0:02:59.7]} 2. c4 {[%clk 0:03:00.1]}
2... g6 {[%clk 0:02:59.4]} 3. Nc3 {[%clk 0:02:59.6]} 3... Bg7 {[%clk 0:02:59.8]}
4. e4 {[%clk 0:02:59.1]} 4... e5 {[%clk 0:03:00.3]} 5. d4 {[%clk 0:01:59.9]}
5... exd4 {[%clk 0:02:58.2]} 6. Nxd4 {[%clk 0:02:00.8]} 6... O-O {[%clk
0:02:57.9]} 7. Be2 {[%clk 0:02:00.5]} 7... Re8 {[%clk 0:02:57.8]} 8. f3 {[%clk
0:01:57.1]} 8... c6 {[%clk 0:02:41.4]} 9. Nc2 {[%clk 0:01:47.9]} 9... d5 {[%clk
0:02:33.7]} 10. cxd5 {[%clk 0:01:44.6]} 10... cxd5 {[%clk 0:02:33.9]} 11. exd5
{[%clk 0:01:25.9]} 11... Qb6 {[%clk 0:02:33.1]} 12. Qd4 {[%clk 0:01:19.1]} 12...
Nbd7 {[%clk 0:02:21.3]} 13. Qxb6 {[%clk 0:01:05.9]} 13... Nxb6 {[%clk
0:02:21.2]} 14. Ne3 {[%clk 0:01:04.3]} 14... Rd8 {[%clk 0:02:08.8]} 15. Kf2
{[%clk 0:00:45.1]} 15... Nfxd5 {[%clk 0:02:07]} 16. Nexd5 {[%clk 0:00:37.8]}
16... Nxd5 {[%clk 0:02:07.9]} 17. Rd1 {[%clk 0:00:30]} 17... Be6 {[%clk
0:02:07.2]} 18. Bg5 {[%clk 0:00:30]} 18... Nf6 {[%clk 0:01:20.8]} 19. Rxd8+
{[%clk 0:00:28.5]} 19... Rxd8 {[%clk 0:01:20.2]} 20. Rd1 {[%clk 0:00:28.1]}
20... Rxd1 {[%clk 0:01:19.5]} 21. Bxd1 {[%clk 0:00:28.7]} 21... a6 {[%clk
0:01:19.3]} 22. Bc2 {[%clk 0:00:20.4]} 22... Nd5 {[%clk 0:01:19.3]} 23. Nxd5
{[%clk 0:00:19.1]} 23... Bxd5 {[%clk 0:01:20.2]} 24. b3 {[%clk 0:00:18]} 24...
Kf8 {[%clk 0:01:19.7]} 25. Ke3 {[%clk 0:00:16.8]} 25... Ke8 {[%clk 0:01:13.2]}
26. Be4 {[%clk 0:00:16.7]} 26... Bxe4 {[%clk 0:01:12.6]} 27. Kxe4 {[%clk
0:00:17.6]} 27... Kd7 {[%clk 0:01:13.1]} 28. Kd5 {[%clk 0:00:17.8]} 28... h5
{[%clk 0:01:12.6]} 29. h3 {[%clk 0:00:17.2]} 29... Bh8 {[%clk 0:01:08.9]} 30. g4
{[%clk 0:00:17.3]} 30... Bg7 {[%clk 0:01:07.7]} 31. gxh5 {[%clk 0:00:16]} 31...
gxh5 {[%clk 0:01:08.6]} 32. Bf4 {[%clk 0:00:16.4]} 32... Bf6 {[%clk 0:01:07.6]}
33. Be5 {[%clk 0:00:15.5]} 33... Be7 {[%clk 0:01:06.4]} 34. Bd4 {[%clk 0:00:15]}
34... Bf8 {[%clk 0:01:04]} 35. Bf6 {[%clk 0:00:13.8]} 35... Bd6 {[%clk
0:01:03.2]} 36. Be5 {[%clk 0:00:13.5]} 36... Ba3 {[%clk 0:01:02.9]} 37. Bd4
{[%clk 0:00:12.7]} 37... Bd6 {[%clk 0:01:02.6]} 38. Bc3 {[%clk 0:00:12.7]} 38...
Bc7 {[%clk 0:01:01.9]} 39. Bd2 {[%clk 0:00:11.9]} 39... Bd6 {[%clk 0:01:00.9]}
40. Bg5 {[%clk 0:00:10.2]} 40... Bc7 {[%clk 0:01:00.5]} 41. Bf6 {[%clk
0:00:08.7]} 41... Bd6 {[%clk 0:00:58.9]} 42. Be5 {[%clk 0:00:08.2]} 42... Ba3
{[%clk 0:00:58.4]} 43. Bf4 {[%clk 0:00:07.9]} 43... Bb2 {[%clk 0:00:57.7]} 44.
a4 {[%clk 0:00:07.1]} 44... Bc3 {[%clk 0:00:52]} 45. Be3 {[%clk 0:00:07.4]}
45... Bb2 {[%clk 0:00:50]} 46. f4 {[%clk 0:00:07.5]} 46... Bc3 {[%clk 0:00:44]}
47. f5 {[%clk 0:00:06.8]} 47... Bb2 {[%clk 0:00:43.7]} 48. Bf4 {[%clk
0:00:06.3]} 48... Ba3 {[%clk 0:00:42.2]} 49. Bd2 {[%clk 0:00:06]} 49... Bd6
{[%clk 0:00:40.8]} 50. Bc3 {[%clk 0:00:04.3]} 50... Bc7 {[%clk 0:00:40.3]} 51.
Bd4 {[%clk 0:00:04.7]} 51... Bd6 {[%clk 0:00:40.3]} 52. Bc3 {[%clk 0:00:05.2]}
52... Bc7 {[%clk 0:00:40.4]} 53. b4 {[%clk 0:00:05.7]} 53... Bd6 {[%clk
0:00:39.4]} 54. b5 {[%clk 0:00:06.3]} 54... axb5 {[%clk 0:00:39.4]} 55. axb5
{[%clk 0:00:07.2]} 55... Bg3 {[%clk 0:00:37.5]} 56. Bd4 {[%clk 0:00:08.1]} 56...
Bd6 {[%clk 0:00:36.5]} 57. Bf6 {[%clk 0:00:08.7]} 57... Bg3 {[%clk 0:00:36.4]}
58. Bg7 {[%clk 0:00:09.3]} 58... Bd6 {[%clk 0:00:35.5]} 59. Bh8 {[%clk
0:00:10.1]} 59... Bc7 {[%clk 0:00:35.4]} 60. Bc3 {[%clk 0:00:10.8]} 60... Bd6
{[%clk 0:00:35.5]} 61. Bb2 {[%clk 0:00:11.5]} 61... Bc7 {[%clk 0:00:35.7]} 62.
Ba1 {[%clk 0:00:12.1]} 62... Bd6 {[%clk 0:00:35.9]} 63. Be5 {[%clk 0:00:12.7]}
63... Ba3 {[%clk 0:00:33.4]} 64. Bd4 {[%clk 0:00:11.9]} 64... Bd6 {[%clk
0:00:33.1]} 65. Bc3 {[%clk 0:00:10.9]} 65... Bc7 {[%clk 0:00:32.9]} 66. Be1
{[%clk 0:00:10.7]} 66... Bd6 {[%clk 0:00:33]} 67. Bf2 {[%clk 0:00:10.8]} 67...
Bc7 {[%clk 0:00:32.3]} 68. Bc5 {[%clk 0:00:10.2]} 68... Bg3 {[%clk 0:00:31.6]}
69. Bd4 {[%clk 0:00:07.1]} 1/2-1/2